Cogmind - Beta 14 @@@ ROGUE MODE // 2024.08.25 @ 15:20:39 Player: Terminus Result: Destroyed by Y-54 Guardian with Gatling Laser Performance ------------- Evolutions (0) 0 Regions Visited (3) 600 Robots Destroyed (31) 155 Value Destroyed (883) 883 Prototype IDs (2) 40 Alien Tech Used (0) 0 Bonus (0) 0 TOTAL SCORE: 1678 Bonus ------- None Cogmind --------- Core Integrity 0/250 Matter 240/300 Energy 100/100 System Corruption 0% Temperature Cool (48) Movement Core (750) Ox14 Location -7/Recycling Parts ------- > --- POWER (1) -------- (None) > --- PROPULSION (2) --- (None) > --- UTILITY (2) ------ High-capacity Storage Unit > --- WEAPON (2) ------- Autogun > --- INVENTORY (20) --- Heat Sink SUBCON Basin (Full) Peak State ------------ > --- POWER ------------ Ion Engine > --- PROPULSION ------- Light Treads Light Treads > --- UTILITY ---------- Improved Heat Sink High-capacity Storage Unit > --- WEAPON ----------- Autogun Autogun > --- INVENTORY -------- Heat Sink Autogun SUBCON Basin [Rating: 29] Favorites ----------- Power Ion Engine Engine Ion Engine Propulsion Light Treads Treads Light Treads Utility High-capacity Storage Unit Device Improved Heat Sink Storage High-capacity Storage Unit Protection Light Armor Plating Weapon Autogun Energy Gun Medium Laser Energy Cannon Subdweller Beam Cannon Ballistic Gun Autogun Launcher Subdweller Shrapnel Launcher Build | -11 -10 -10 -7 ------- Run | Yrd Mat Sub Rec Slots Evolved . | . . . . Power . | . . . . Propulsion . | . . . . Utility . | . . . . Weapon . | . . . . Parts Attached 31 | 6 7 13 5 Power 4 | 1 1 2 . Engine 4 | 1 1 2 . Core . | . . . . Reactor . | . . . . Propulsion 4 | 2 . 1 1 Treads 4 | 2 . 1 1 Leg . | . . . . Wheel . | . . . . Hover . | . . . . Flight . | . . . . Utility 8 | 1 4 2 1 Device 3 | . 1 1 1 Storage 3 | 1 2 . . Processor . | . . . . Hackware . | . . . . Protection 2 | . 1 1 . Artifact . | . . . . Weapon 15 | 2 2 8 3 Energy Gun 2 | 1 . 1 . Energy Cannon 4 | . . 4 . Ballistic Gun 8 | 1 2 2 3 Ballistic Cannon . | . . . . Launcher 1 | . . 1 . Special Weapon . | . . . . Impact Weapon . | . . . . Slashing Weapon . | . . . . Piercing Weapon . | . . . . Special Melee Weapon . | . . . . Unidentified Prototypes . | . . . . Parts Lost 12 | . . 4 8 Power 3 | . . 2 1 Propulsion 4 | . . 1 3 Utility 2 | . . 1 1 Weapon 3 | . . . 3 Highest Loss Streak 6 | . . 2 6 To Critical Strikes 1 | . . 1 . Average Slot Usage (%) 99 | . 98 99 93 Engine 13 | . 14 13 13 Treads 27 | . 28 28 27 Device 2 | . 3 1 12 Storage 14 | . 14 14 14 Protection 10 | . 9 12 . Energy Gun 1 | . 4 . . Energy Cannon 9 | . . 14 6 Ballistic Gun 16 | . 23 12 18 Peak Build Rating 29 | 6 11 28 29 Average Rating 12 | 4 10 13 27 On Entrance 11 | . 6 11 28 Naked Turns . | . . . . Heaviest Build 62 | 14 54 62 54 Greatest Support 40 | 40 40 40 40 Greatest Overweight (x) 1 | . 1 1 1 Average Overweight (x) . | . . 1 1 Largest Inventory Capacity 20 | 8 20 20 20 Average Capacity 18 | 7 17 20 20 Most Carried 20 | 2 18 20 20 Average Carried 17 | 1 13 19 17 Final Capacity 20 | 8 20 20 20 Final Carried 20 | 2 18 20 16 Class Distribution -------------------- 100% | Mutant Dominant Class ---------------- Mutant | -10/Materials Mutant | -10/Subcaves Mutant | -7/Recycling Resources | -11 -10 -10 -7 ----------- Run | Yrd Mat Sub Rec Matter Collected 890 | 240 301 292 57 Remotely . | . . . . Salvage Created 1177 | . 567 379 231 Parts 76 | . 36 30 10 Haulers Intercepted 1 | . 1 . . Recyclers Shooed 5 | . 2 . 3 Parts Field Recycled . | . . . . Retrieved Matter . | . . . . Parts Self-Destructed 8 | . . 8 . Prevented . | . . . . Kills | -11 -10 -10 -7 ------- Run | Yrd Mat Sub Rec Combat Hostiles Destroyed 23 | . 8 11 4 Guns 11 | . 8 2 1 Cannons 9 | . . 6 3 AOE 3 | . . 3 . Classes Destroyed 11 | . 6 3 2 Worker 1 | . 1 . . Hauler 1 | . 1 . . Recycler 3 | . 3 . . Turret 2 | . . 2 . Watcher 1 | . 1 . . Swarmer 6 | . 3 3 . Grunt 5 | . 5 . . Duelist 1 | . . . 1 Sentry 3 | . . 1 2 Programmer 1 | . . . 1 Subdweller 7 | . . 7 . Best Kill Streak 5 | . 3 5 3 Combat Bots Only 3 | . 3 3 3 Max Kills in Single Turn 2 | . 1 2 1 Gunslinging . | . . . . Exploded 2 | . . 2 . Melee . | . . . . Uniques/NPCs Destroyed . | . . . . Combat | -11 -10 -10 -7 -------- Run | Yrd Mat Sub Rec Hostile Shots Fired 256 | . 32 56 168 Missed 89 | . 9 24 56 Damage Taken 1814 | . 253 571 990 Core 258 | . 32 43 183 Absorbed by Shields . | . . . . Redirected to Shielding 2 | . . 2 . Core Remaining (%) 100 | 100 . . . Volleys Fired 120 | . 41 52 27 Largest 2 | . 2 2 2 Hottest 160 | . 70 160 160 Shots Fired 188 | . 82 67 39 Gun 134 | . 82 31 21 Cannon 49 | . . 31 18 Launcher 5 | . . 5 . Special . | . . . . Kinetic 111 | . 59 31 21 Thermal 72 | . 23 31 18 Explosive . | . . . . Electromagnetic 5 | . . 5 . Robot Hit Streak 21 | . 11 6 21 Robot Miss Streak 4 | . 4 1 3 Penetration Max . | . . . . Secondary Targets . | . . . . Shots Hit Robots 115 | . 53 30 32 Core Hits 46 | . 20 18 8 Critical Kills 1 | . 1 . . Critical Parts Destroyed . | . . . . Critical Strikes 1 | . 1 . . Destroy 1 | . 1 . . Melee Attacks . | . . . . Impact . | . . . . Slashing . | . . . . Piercing . | . . . . Sneak Attacks . | . . . . Combat Hostiles . | . . . . Follow-up Attacks . | . . . . Damage Inflicted 2634 | . 776 1206 652 Guns 1222 | . 763 145 314 Cannons 900 | . . 563 337 Explosions 498 | . . 498 . Melee . | . . . . Ramming 14 | . 13 . 1 Kinetic 1533 | . 576 643 314 Thermal 1087 | . 187 563 337 Explosive . | . . . . Electromagnetic . | . . . . Impact . | . . . . Slashing . | . . . . Piercing . | . . . . Highest Corruption . | . . . . Average Corruption . | . . . . Corruption Purged . | . . . . Corruption Blocked . | . . . . Overload Shots . | . . . . Overflow Damage 59 | . . 59 . Projectiles . | . . . . Explosions 59 | . . 59 . Melee . | . . . . Knockbacks . | . . . . Impact . | . . . . Kinetic . | . . . . Secondary . | . . . . Self-Inflicted Damage . | . . . . Shots . | . . . . Rammed 3 | . 2 . 1 Targets Rammed 3 | . 2 . 1 Kicked . | . . . . Crushed . | . . . . Highest Temperature 300 | . 144 48 300 Average Temperature 70 | . 46 14 147 Received Heat Transfer 429 | . 123 72 234 Siege Activations . | . . . . Robots Corrupted . | . . . . Combat Hostiles . | . . . . Parts Fried . | . . . . Impact Corruptions . | . . . . Robots Melted . | . . . . Combat Hostiles . | . . . . Parts Melted 5 | . . 4 1 Heat Transferred 1739 | . 555 740 444 Parts Sabotaged . | . . . . Parts Stolen . | . . . . Parts Stripped . | . . . . Power Chain Reactions . | . . . . Alert | -11 -10 -10 -7 ------- Run | Yrd Mat Sub Rec Peak Influence 192 | . 192 . 99 Initial 39 | . . . 39 Average 69 | . 71 . 83 Maximum Alert Level . | . . . . Low Security (%) 100 | 100 100 . 100 Level 1 . | . . . . Level 2 . | . . . . Level 3 . | . . . . Level 4 . | . . . . Level 5 . | . . . . High Security . | . . . . Max Security . | . . . . Squads Dispatched 4 | . 4 . . Investigation 2 | . 2 . . Extermination . | . . . . Reinforcement 2 | . 2 . . Assault . | . . . . Garrison . | . . . . Intercept . | . . . . Searches Triggered . | . . . . Construction Impeded . | . . . . Haulers Reinforced . | . . . . Active Scanning Responses . | . . . . Cargo Convoy Interrupts . | . . . . Stealth | -11 -10 -10 -7 --------- Run | Yrd Mat Sub Rec Distress Signals . | . . . . Communications Jammed . | . . . . Distress Signals . | . . . . Times Spotted 38 | . 16 17 5 Peak Tracking Total 6 | . 4 6 3 Tactical Retreats 7 | . . 7 . Traps | -11 -10 -10 -7 ------- Run | Yrd Mat Sub Rec Traps Triggered 2 | . 2 . . Indirectly . | . . . . Trap Hack Attempts . | . . . . Triggered . | . . . . Disarmed . | . . . . Reprogrammed . | . . . . Reused . | . . . . Traps Extracted . | . . . . Installed . | . . . . Triggered . | . . . . Machines | -11 -10 -10 -7 ---------- Run | Yrd Mat Sub Rec Machines Disabled 4 | . . 4 . Max in Single Turn 3 | . . 3 . Machines Repaired . | . . . . Machines Dismantled . | . . . . Machines Sabotaged . | . . . . Overloaded Fab Kills . | . . . . Hacking | -11 -10 -10 -7 --------- Run | Yrd Mat Sub Rec Machines Accessed 10 | . 5 2 3 Terminals 8 | . 5 . 3 Fabricators . | . . . . Repair Stations . | . . . . Recycling Units . | . . . . Scanalyzers . | . . . . Garrison Access . | . . . . Total Hacks 24 | . 16 3 5 Successful 13 | . 9 3 1 Failed 10 | . 6 . 4 Catastrophic 1 | . 1 . . Database Lockouts 1 | . 1 . . Manual 19 | . 14 . 5 Terminals 21 | . 16 . 5 Fabricators . | . . . . Repair Stations . | . . . . Recycling Units . | . . . . Scanalyzers . | . . . . Garrison Access . | . . . . Terminal Hacks 8 | . 5 3 . Record 1 | . . 1 . Robot Analysis 2 | . 2 . . Prototype ID Bank 1 | . 1 . . Open Door 1 | . . 1 . Recall Reinforcements 1 | . 1 . . Zone Layout 1 | . 1 . . Release Object 1 | . . 1 . Fabricator Hacks . | . . . . Repair Station Hacks . | . . . . Recycling Unit Hacks . | . . . . Scanalyzer . | . . . . Garrison Access Hacks . | . . . . Unauthorized Hacks 5 | . 4 . 1 Terminals 5 | . 4 . 1 Botnet 5 | . 4 . 1 Fabricators . | . . . . Repair Stations . | . . . . Recycling Units . | . . . . Scanalyzers . | . . . . Garrison Access . | . . . . Data Cores Recovered . | . . . . Used . | . . . . Hacking Detections 6 | . 3 . 3 Full Trace Events . | . . . . Feedback Events . | . . . . Feedback Blocked . | . . . . Robot Schematics Acquired . | . . . . Robots Built . | . . . . Authchips . | . . . . Time . | . . . . Total Robot Build Rating . | . . . . Part Schematics Acquired . | . . . . Parts Built . | . . . . Authchips . | . . . . Time . | . . . . Total Part Build Rating . | . . . . Parts Repaired . | . . . . Time . | . . . . Parts Recycled . | . . . . Recycled Matter . | . . . . Retrieved Matter . | . . . . Retrieved Components . | . . . . Parts Scanalyzed . | . . . . Part Schematics Acquired . | . . . . Parts Damaged . | . . . . Bothacking | -11 -10 -10 -7 ------------ Run | Yrd Mat Sub Rec Used RIF Installer . | . . . . Robots Hacked . | . . . . Non-combat . | . . . . Combat . | . . . . Robot Hacks Applied . | . . . . Relay Couplers Released . | . . . . Fabnet Peak Effective % . | . . . . Robots Rewired . | . . . . Allies Hacked . | . . . . Hacks Repelled . | . . . . Allies | -11 -10 -10 -7 -------- Run | Yrd Mat Sub Rec Total Allies . | . . . . Largest Group . | . . . . Highest-Rated Group . | . . . . Highest-Rated Ally . | . . . . Total Orders . | . . . . Ally Attacks . | . . . . Total Damage . | . . . . Kills . | . . . . Allies Corrupted . | . . . . Allies Melted . | . . . . Intel | -11 -10 -10 -7 ------- Run | Yrd Mat Sub Rec Robot Analysis Total 2 | . 2 . . Derelict Logs Recovered 1 | . . 1 . Drone Launches . | . . . . Drone Recoveries . | . . . . Exploration | -11 -10 -10 -7 ------------- Run | Yrd Mat Sub Rec Turns Passed 3597 | 78 1198 2147 174 Spaces Moved 1386 | 50 470 830 36 Core 11 | 11 . . . Treads 1375 | 39 470 830 36 Legs . | . . . . Wheels . | . . . . Hover . | . . . . Flight . | . . . . Fastest Speed 50 | 50 160 240 240 Average Speed 226 | 135 210 240 240 Slowest Speed 240 | 160 240 240 240 Overloaded Moves . | . . . . Propulsion Burnouts . | . . . . Robots Hopped . | . . . . Cave-ins Triggered . | . . . . Exploration Rate (%) 27 | 3 51 43 13 Regions Visited 3 Branch Regions 2 Pre-discovered Areas 2 | . . 2 . Known Exits Taken . | . . . . Unknown Exits Taken 3 | 1 1 1 . Scrap Searched . | . . . . Spaces Dug 22 | . . 22 . Terrain Destroyed 77 | . . 71 6 Melee . | . . . . Projectile 9 | . . 3 6 AOE 68 | . . 68 . Terrain Rammed . | . . . . Walls Destroyed . | . . . . Machines Disabled . | . . . . Actions | -11 -10 -10 -7 --------- Run | Yrd Mat Sub Rec Total 1670 | 57 599 928 86 Wait 87 | . 61 10 16 Move 1383 | 49 469 829 36 Hop . | . . . . Pick Up 25 | 2 16 7 . Fast Attach 8 | 6 1 1 . Attach 9 | . . 5 4 Detach . | . . . . Swap 14 | . 6 7 1 Drop 20 | . 3 16 1 Fire 120 | . 41 52 27 Melee . | . . . . Ram . | . . . . Kick . | . . . . Crush 3 | . 2 . 1 Escape Stasis . | . . . . Rewire 1 | . . 1 . Trap . | . . . . Miscellaneous . | . . . . Route ------- -11/Scrapyard -10/Materials (discovered 3 exits: [*Mat] / [*Min] / *Sub) -10/Subcaves (discovered 2 exits: [*Mat] / *Rec) -7/Recycling History --------- Turn | Location | Event 4 | -11/Scrapyard | Discovered new exit (range 15) 79 | -11/Scrapyard | Entered Materials 311 | -10/Materials | Build established: Mutant 369 | -10/Materials | Discovered new exit (range 12) 624 | -10/Materials | Discovered new exit (range 13) 658 | -10/Materials | Central database locked down 1265 | -10/Materials | Discovered new exit (range 5) 1277 | -10/Materials | Entered Subcaves 1309 | -10/Subcaves | Discovered new exit (range 7) 1344 | -10/Subcaves | Learned location of Zion (-7) 1344 | -10/Subcaves | Met a Zionite searching for "candidates" 2742 | -10/Subcaves | Discovered new exit (range 16) 3084 | -10/Subcaves | Found SUBCON Basin 3424 | -10/Subcaves | Entered Recycling 3461 | -7/Recycling | Core integrity fell below 50% 3596 | -7/Recycling | Core integrity fell below 20% 3598 | -7/Recycling | Destroyed by Y-54 Guardian with Gatling Laser Last Messages --------------- Testing... Terminal linked with 0 systems. Awaiting botnet instructions. 03525_ Connecting with Terminal... 03531_ R-06 Scavenger inserts Imp. Heat Sink into recycling unit. 03533_ R-06 Scavenger collects Carbon-fiber Leg. 03534_ R-06 Scavenger inserts Imp. Heat Sink into recycling unit. 03537_ R-06 Scavenger inserts Carbon-fiber Leg into recycling unit. 03540_ R-06 Scavenger inserts Broken Sub. Beam Cannon into recycling unit. 03561_ Y-54 Guardian springs to life. 03575_ Imp. Heat Sink destroyed. 03578_ Slammed into Y-54 Guardian. 03581_ Destroyed Imp. Heat Sink. 03584_ Ion Engine destroyed. 03588_ Lgt. Treads destroyed. 03589_ Autogun destroyed. 03594_ D-53 Grenadier destroyed. 03595_ Autogun destroyed. 03597_ Lgt. Treads destroyed. 03597_ Y-54 Guardian destroyed. Map ----- +----------------------------------------------------+ | ?????????????????????????????????????????????????? | | ?????????????????????????????????????????????????? | | ?????????????????????????????????????????????????? | | ?????????????????????????????????????????????????? | | ?????????????????????????????????????????????????? | | ?????????????????????????????????????????????????? | | ?????????????????????????????????????????????????? | | ?????????????????????????????????????????????????? | | ?????????????????????????????????????????????????? | | ?????????????????????????????????????????????????? | | ?????????????????????????????????????????????????? | | ??????????????????????????????##+##??????????????? | | ?????????????????????????????? #??????????????? | | ??????????????????????????????# #??????????????? | | ??????????????????????????????# #??????????????? | | ??????????????????????????????# #??????????????? | | ??????????????????????????????# #??????????????? | | ??????????????????????????????# #??????????????? | | ??????????????????????????????# #??????????????? | | ??????????????????###?????????# ########???????? | | ??????????????????#"""?????#### ##"""""#???????? | | ??????????? #####"Y"######;## ##""T""###?????? | | ??????????# # ###???? | | ??????????# # ""#???? | | ??????????# Y # """ ""#???? | | ????????????????######+##@###"" " """ T"#???? | | ???????????????????????!%=%!#"" + """ ""#???? | | ????????????????????? =! ## %# """ ""#???? | | ??????????????????? ! g] ###% # """ ###???? | | ??????????????????# dg #?# # #?????? | | ??????????????????# g i#?# % # #?????? | | ??????????????????#Y t ] % #?# ###" "####?????? | | ??????????????????# pk d ta#?#####?#"T"#????????? | | ??????????????????# h ! #???????#"""#????????? | | ??????????????????###########???????#####????????? | | ?????????????????????????????????????????????????? | | ?????????????????????????????????????????????????? | | ?????????????????????????????????????????????????? | | ?????????????????????????????????????????????????? | | ?????????????????????????????????????????????????? | | ?????????????????????????????????????????????????? | | ?????????????????????????????????????????????????? | | ?????????????????????????????????????????????????? | | ?????????????????????????????????????????????????? | | ?????????????????????????????????????????????????? | | | | | | | | | | | +----------------------------------------------------+ Best States ------------- Heat Dissipation 39 Energy Generation 10 Energy Capacity 250 Matter Stores 300 Matter Capacity 300 Sight Range 16 Terrain Scan Density 10 Armor Coverage 150 Core Shielding 20 Evasion (%) 50 Recoil Reduction 2 Item Schematics ----------------- None Robot Schematics ------------------ None Fabricated ------------ Nothing Alien Tech Used ----------------- None Achievements -------------- None Challenges ------------ None Game ------ Seed ImprovedSpreadTerminator Manual? 0 Play Time 00:15:14 Cumulative 1967.4 hours Start 2024.08.25 @ 15:06:20 End 2024.08.25 @ 15:20:39 Sessions 1 Manual Loads 0 Difficulty Rogue Special Mode None Game No. 681 Rogue 681 Adventurer 0 Explorer 0 Win Type - Total 153 Types 31/14/65/7/1/2/31/1/1 Lore% 83 Gallery% 95 Achievement% 88 Wizard Run 0 Options --------- Layout 0 ASCII 0 Keyboard 0 Movement Numpad Keybinds 0 Fullscreen 2 Font 18/SmallcapsGlow Map View 76x50 Zoom Use 0% Tactical HUD 1 Map Filters NONE Filters NONE Steam 1 RUN: 74e7c4ca-2d69-44b7-8ccb-7fa2a38b8c35